fUSD/lending_fUSD_20240722
["ID","MTS","AMOUNT","RATE_DAILY","PERIOD"]
[332900733,1721665841915,-377733.6191556,0.0001188,2]
[332900735,1721665841925,-151.0,0.00011897,2]
[332900737,1721665841934,-151.0,0.00011897,2]
[332900739,1721665841943,-210.44881553,0.00011899,2]
[332900741,1721665841953,-5297.72815254,0.00011899,2]
[332900743,1721665841962,-516709.14382178,0.000119,2]
[332900746,1721665841989,-805.512,0.000119,2]
[332900760,1721665842111,-158.07088294,0.00011322,2]
[332900763,1721665842124,-3664.34710642,0.000119,2]
[332901359,1721665847055,-225.46995741,0.00011899,2]
[332901361,1721665847066,-1116.04591459,0.000119,2]
[332901514,1721666412291,461.55,9.014e-05,2]
[332901515,1721666465081,9080.02,9.014e-05,2]
[332901516,1721666465106,8565.01266291,9.014e-05,2]
[332901551,1721666973439,-1131.42,0.00010317,2]
[332901553,1721666982922,463.66,8.687e-05,2]
[332901555,1721666984054,-500.0,0.00010601,2]
[332901556,1721666984075,-1000.0,0.00010632,2]
[332901557,1721666986817,1986.667914,0.00010548,2]
[332901559,1721666991106,4918.252086,9.014e-05,2]
[332901560,1721666991133,29598.03729043,9.014e-05,2]
[332901621,1721667037593,-295.41576421,0.00010317,2]
[332901622,1721667037613,-4.84965585,0.00010317,2]
[332901623,1721667037623,-232.76,0.00010664,2]
[332901624,1721667037633,-250.0,0.00010797,2]
[332901625,1721667037643,-460.2851,0.00010805,2]
[332901626,1721667037654,-456.91047354,0.00010805,2]
[332901627,1721667037725,-1002.56989998,0.00010805,2]
[332901628,1721667037737,-569.46821368,0.00010805,2]
[332901778,1721667039419,-326.93653457,0.00010805,2]
[332901788,1721667039474,-144.11487823,0.00010805,2]
[332901791,1721667039483,-150.0,0.00010899,2]
[332901794,1721667039493,-500.0,0.000109,2]
[332901796,1721667039507,-173.52512177,0.000109,2]
[332901843,1721667039983,-326.47487823,0.000109,2]
[332901845,1721667039992,-343.83306177,0.000109,2]
[332901994,1721667042614,-156.16693823,0.000109,2]
[332901995,1721667042623,-500.0,0.000109,2]
[332901996,1721667042633,-500.0,0.000109,2]
[332901997,1721667042643,-500.0,0.000109,2]
[332901998,1721667042653,-500.0,0.000109,2]
[332901999,1721667042664,-500.0,0.000109,2]
[332902000,1721667042676,-500.0,0.000109,2]
[332902001,1721667042685,-500.0,0.000109,2]
[332902002,1721667042695,-500.0,0.000109,2]
[332902003,1721667042704,-500.0,0.000109,2]
[332902004,1721667042713,-350.38,0.000109,2]
[332902005,1721667042723,-500.0,0.000109,2]
[332902006,1721667042732,-500.0,0.000109,2]
[332902007,1721667042742,-297.14,0.000109,2]
[332902008,1721667042751,-1000.0,0.00010904,2]
[332902009,1721667042760,-990.86223268,0.00010905,2]
[332902010,1721667042772,-16402.26069,0.00010905,2]
[332902013,1721667042878,-457.46955249,0.00010905,2]
[332902014,1721667042890,-1777.28742832,0.00010905,2]
[332902015,1721667042903,-6950.22205377,0.00010905,2]
[332902037,1721667045821,-436.81,0.00010905,2]
[332902039,1721667046331,-16398.00764274,0.00010905,2]
[332902040,1721667046341,-117374.87259174,0.00010905,2]
[332902041,1721667046352,-436.96110622,0.00010905,2]
[332902042,1721667046363,-9754.86515209,0.00010905,2]
[332902043,1721667199085,1000.0,0.00024,60]
[332902044,1721667217298,5000.0,0.00024,60]
[332902045,1721667603050,717.57,8.598e-05,2]
[332902046,1721667660156,695.84893974,8.598e-05,2]
[332902047,1721667741931,213.50795049,8.598e-05,2]
[332902048,1721667767695,500.0,0.00025,120]
[332902049,1721667783370,151.0,0.00020469,120]
[332902051,1721667833969,1000.0,0.00024,60]
[332902055,1721667912063,1000.0,0.00024,60]
[332902056,1721668014347,256.59,0.00024,60]
[332902057,1721668127049,151.0,0.00020469,120]
[332902098,1721668230520,5000.0,0.00024,60]
[332902106,1721668231625,-669.94125223,0.0001,2]
[332902107,1721668231747,-330.05874777,0.0001,2]
[332902108,1721668231756,-326.58551908,0.00010114,2]
[332902109,1721668231766,-397.0,0.00010214,2]
[332902110,1721668231775,-250.0,0.00010215,2]
[332902111,1721668231785,-237.73772635,0.00010222,2]
[332902112,1721668231794,-367.05577216,0.00010281,2]
[332902113,1721668231806,-432.94422784,0.00010281,2]
[332902114,1721668231815,-110.36282202,0.00010422,2]
[332902115,1721668231827,-475.24540886,0.00010422,2]
[332902116,1721668231837,-200.0,0.00010569,2]
[332902117,1721668231849,-6.51028923,0.00010762,2]
[332902118,1721668231881,-1025.95971077,0.00010762,2]
[332902119,1721668231891,-717.57,0.00010862,2]
[332902120,1721668231900,-150.0,0.00010899,2]
[332902121,1721668231910,-300.0,0.00010899,2]
[332902122,1721668231921,-500.0,0.000109,2]
[332902123,1721668231932,-500.0,0.000109,2]
[332902124,1721668231942,-500.0,0.000109,2]
[332902125,1721668231951,-102.33535257,0.000109,2]
[332902126,1721668231963,-397.66464743,0.000109,2]
[332902127,1721668231972,-500.0,0.000109,2]
[332902128,1721668231981,-500.0,0.000109,2]
[332902129,1721668231990,-500.0,0.000109,2]
[332902130,1721668231999,-430.49,0.000109,2]
[332902131,1721668232008,-500.0,0.000109,2]
[332902132,1721668232018,-500.0,0.000109,2]
[332902133,1721668232027,-324.05,0.000109,2]
[332902134,1721668232037,-500.0,0.000109,2]
[332902135,1721668232047,-500.0,0.000109,2]
[332902136,1721668232056,-500.0,0.000109,2]
[332902137,1721668232065,-500.0,0.000109,2]
[332902138,1721668232075,-500.0,0.000109,2]
[332902140,1721668232084,-200.29,0.000109,2]
[332902143,1721668232093,-499.99,0.000109,2]
[332902146,1721668232102,-3000.0,0.00010905,2]
[332902149,1721668232111,-155.0,0.00010926,2]
[332902151,1721668232121,-226.74477351,0.00010926,2]
[332902154,1721668232130,-2837.55930766,0.00010926,2]
[332902156,1721668232139,-200.21501138,0.00010926,2]
[332902157,1721668232148,-9258.81548687,0.00010926,2]
[332902158,1721668232157,-446.47632009,0.00010926,2]
[332902159,1721668232167,-599.60667054,0.00010926,2]
[332902160,1721668232176,-308.80447268,0.00010926,2]
[332902161,1721668232185,-246.13322194,0.00010926,2]
[332902162,1721668232195,-203.08849895,0.00010926,2]
[332902163,1721668232204,-298.26312183,0.00010926,2]
[332902164,1721668232213,-9598.209638,0.00010926,2]
[332902165,1721668232232,-419.95,0.00010932,2]
[332902166,1721668232243,-420.11,0.00010932,2]
[332902167,1721668232252,-1000.0,0.00010958,2]
[332902168,1721668232262,-150.0,0.00010959,2]
[332902169,1721668232272,-250.0,0.00010959,2]
[332902170,1721668232281,-336.67668818,0.00010996,2]
[332902171,1721668232291,-1000.0,0.00011,2]
[332902172,1721668232300,-1111.55,0.00011,2]
[332902173,1721668232310,-2587.0093,0.00011005,2]
[332902174,1721668232320,-886.5729,0.00011005,2]
[332902175,1721668232330,-300.85,0.00011068,2]
[332902176,1721668232339,-150.54,0.00011068,2]
[332902177,1721668232349,-327.55510664,0.00011092,2]
[332902178,1721668232359,-839.39,0.000111,2]
[332902179,1721668232370,-155.0,0.00011105,2]
[332902180,1721668232380,-218.62689075,0.00011105,2]
[332902181,1721668232389,-4471.12790684,0.00011105,2]
[332902182,1721668232399,-1632.38014955,0.00011105,2]
[332902183,1721668232410,-1404.11080109,0.00011105,2]
[332902184,1721668232420,-2383.29549388,0.00011105,2]
[332902185,1721668232430,-2206.29679381,0.00011105,2]
[332902186,1721668232439,-679.34166426,0.00011105,2]
[332902187,1721668232449,-155.57608458,0.00011105,2]
[332902188,1721668232460,-155.0,0.00011105,2]
[332902189,1721668232469,-210.69145254,0.00011105,2]
[332902190,1721668232479,-188.56967235,0.00011105,2]
[332902191,1721668232488,-195.77302455,0.00011105,2]
[332902192,1721668232498,-263.86139089,0.00011105,2]
[332902193,1721668232508,-155.0,0.00011105,2]
[332902194,1721668232518,-552.6499346,0.00011105,2]
[332902195,1721668232528,-226.25339825,0.00011105,2]
[332902196,1721668232537,-156.46322794,0.00011105,2]
[332902197,1721668232547,-484.56827813,0.00011105,2]
[332902198,1721668232556,-218.24699267,0.00011105,2]
[332902199,1721668232566,-539.18566561,0.00011105,2]
[332902200,1721668232575,-155.0,0.00011105,2]
[332902201,1721668232584,-155.0,0.00011105,2]
[332902202,1721668232593,-202.63817161,0.00011105,2]
[332902203,1721668232603,-158.07088294,0.00011105,2]
[332902204,1721668232612,-159.40015405,0.00011105,2]
[332902205,1721668232623,-790.03749529,0.00011105,2]
[332902206,1721668232633,-155.0,0.00011105,2]
[332902207,1721668232643,-425.43694771,0.00011105,2]
[332902208,1721668232652,-2513.68707718,0.00011149,2]
[332902209,1721668232661,-22630.61502022,0.00011186,2]
[332902210,1721668232671,-759.04945973,0.00011199,2]
[332902211,1721668232680,-329.5470295,0.00011206,2]
[332902212,1721668232690,-7959.6358,0.00011221,2]
[332902213,1721668232699,-439.52750479,0.00011322,2]
[332902214,1721668232709,-32886.63423367,0.00011352,2]
[332902215,1721668232753,-2009.39774727,0.00011352,2]
[332902216,1721668232779,-865.46028817,0.00011352,2]
[332902217,1721668232816,-2159.97449723,0.00011352,2]
[332902218,1721668232827,-326.35850846,0.00011352,2]
[332902219,1721668232838,-600.0,0.00011352,2]
[332902220,1721668232853,-1157.040219,0.00011352,2]
[332902221,1721668232905,-697.11121979,0.00011352,2]
[332902222,1721668232918,-653.51,0.00011352,2]
[332902223,1721668232932,-8348.07335251,0.00011352,2]
[332902228,1721668237657,-27859.4399339,0.00011352,2]
[332902229,1721668237667,-2500.0,0.00011398,2]
[332902230,1721668237676,-508.46,0.00011412,2]
[332902231,1721668237685,-150.0,0.00011412,2]
[332902232,1721668237695,-176.6,0.00011412,2]
[332902233,1721668237704,-150.0,0.00011412,2]
[332902234,1721668237714,-150.0,0.00011412,2]
[332902235,1721668237724,-650.01601297,0.00011428,2]
[332902236,1721668237734,-160.849797,0.00011498,2]
[332902237,1721668237743,-215.170748,0.00011498,2]
[332902238,1721668237753,-8419.924544,0.00011498,2]
[332902239,1721668237763,-739.812725,0.00011498,2]
[332902240,1721668237772,-484.563958,0.00011498,2]
[332902241,1721668237781,-187.414048,0.00011498,2]
[332902242,1721668237792,-8802.01843996,0.00011498,2]
[332902243,1721668237820,-817.69395704,0.00011498,2]
[332902244,1721668237830,-13485.936178,0.00011498,2]
[332902245,1721668237839,-411.091693,0.00011498,2]
[332902246,1721668237853,-1255.875731,0.00011498,2]
[332902247,1721668237862,-220.963599,0.00011498,2]
[332902248,1721668237970,-177.720323,0.00011498,2]
[332902250,1721668237979,-150.0,0.00011509,2]
[332902251,1721668237989,-150.0,0.00011509,2]
[332902252,1721668237998,-2382.0,0.00011509,2]
[332902253,1721668238007,-1994.0,0.00011509,2]
[332902254,1721668238016,-150.0,0.00011509,2]
[332902255,1721668238025,-550.0,0.00011509,2]
[332902257,1721668238035,-3283.0,0.00011509,2]
[332902258,1721668238044,-150.0,0.00011509,2]
[332902259,1721668238053,-5827.0,0.00011509,2]
[332902260,1721668238063,-5120.0,0.00011509,2]
[332902261,1721668238072,-38351.0,0.00011509,2]
[332902262,1721668238081,-1668.0,0.00011509,2]
[332902263,1721668238091,-1202.0,0.00011509,2]
[332902264,1721668238100,-326.2628,0.00011526,2]
[332902265,1721668238109,-167.77557861,0.00011542,2]
[332902266,1721668238120,-800.0,0.00011566,2]
[332902267,1721668238129,-167.7755786,0.00011572,2]
[332902268,1721668238139,-220.84,0.00011589,3]
[332902269,1721668238147,-7500.0,0.000116,2]
[332902270,1721668238157,-167.7755786,0.00011601,2]
[332902271,1721668238170,-226.40222749,0.00011601,2]
[332902272,1721668238180,-161.53887785,0.00011601,2]
[332902273,1721668238189,-194.54721008,0.00011601,2]
[332902274,1721668238198,-426.13770962,0.00011601,2]
[332902275,1721668238211,-976.42591262,0.00011601,2]
[332902276,1721668238220,-150.0,0.00011627,2]
[332902277,1721668238229,-150.0,0.00011629,2]
[332902278,1721668238239,-445.82092825,0.0001163,2]
[332902279,1721668238248,-150.0,0.00011634,2]
[332902280,1721668238258,-226.40222749,0.00011634,2]
[332902281,1721668238268,-150.0,0.00011635,2]
[332902282,1721668238278,-150.0,0.00011637,2]
[332902283,1721668238288,-240.356,0.0001164,2]
[332902284,1721668238300,-8419.924544,0.00011642,2]
[332902285,1721668238310,-484.563958,0.00011642,2]
[332902286,1721668238319,-739.812725,0.00011642,2]
[332902287,1721668238329,-2112.00722701,0.00011642,2]
[332902288,1721668238341,-319.8,0.00011642,2]
[332902289,1721668238390,-4003.853329,0.00011642,2]
[332902290,1721668238402,-3184.05184099,0.00011642,2]
[332902291,1721668238411,-11815.94815901,0.00011642,2]
[332902292,1721668238422,-668.26362144,0.00011642,2]
[332902293,1721668238438,-1001.72439755,0.00011642,2]
[332902294,1721668238448,-411.091693,0.00011642,2]
[332902295,1721668238457,-1255.875731,0.00011642,2]
[332902296,1721668238467,-150.0,0.00011643,2]
[332902297,1721668238476,-150.0,0.00011644,2]
[332902298,1721668238486,-150.0,0.00011644,2]
[332902299,1721668238495,-150.0,0.00011645,2]
[332902300,1721668238504,-500.0,0.00011645,2]
[332902301,1721668238514,-150.0,0.00011649,2]
[332902302,1721668238524,-150.0,0.00011651,2]
[332902303,1721668238534,-1631.63883234,0.00011654,2]
[332902304,1721668238544,-150.0,0.00011659,2]
[332902305,1721668238553,-150.0,0.0001166,2]
[332902306,1721668238562,-150.0,0.00011662,2]
[332902307,1721668238572,-150.0,0.00011666,2]
[332902308,1721668238581,-150.0,0.00011667,2]
[332902309,1721668238590,-150.0,0.00011667,2]
[332902310,1721668238599,-226.40222749,0.00011667,2]
[332902311,1721668238609,-1164.6105538,0.00011668,2]
[332902312,1721668238621,-335.3894462,0.00011668,2]
[332902313,1721668238630,-150.0,0.00011669,2]
[332902314,1721668238640,-150.0,0.00011674,2]
[332902315,1721668238649,-150.0,0.00011674,2]
[332902316,1721668238659,-150.0,0.00011675,2]
[332902317,1721668238668,-150.0,0.00011678,2]
[332902318,1721668238677,-150.0,0.00011679,2]
[332902319,1721668238687,-150.0,0.00011681,2]
[332902320,1721668238696,-150.0,0.00011683,2]
[332902321,1721668238705,-150.0,0.00011686,2]
[332902322,1721668238715,-152.82812024,0.00011686,2]
[332902323,1721668238725,-150.0,0.00011688,2]
[332902324,1721668238735,-150.0,0.00011689,2]
[332902325,1721668238745,-150.0,0.0001169,2]
[332902326,1721668238754,-150.0,0.00011692,2]
[332902327,1721668238765,-150.0,0.00011693,2]
[332902328,1721668238774,-150.0,0.00011695,2]
[332902329,1721668238783,-150.0,0.00011696,2]
[332902330,1721668238793,-150.0,0.00011697,2]
[332902331,1721668238803,-37150.48962084,0.00011697,2]
[332902332,1721668238818,-1163.382,0.00011697,2]
[332902333,1721668238963,-468.50164004,0.00011697,2]
[332902334,1721668238998,-4070.08297907,0.00011697,2]
[332902337,1721668240465,-355.72425126,0.00011398,2]
[332902338,1721668240518,-117077.57694874,0.00011398,2]
[332902339,1721668240528,-150.0,0.00011628,2]
[332902340,1721668240537,-150.0,0.00011632,2]
[332902341,1721668240547,-150.0,0.00011645,2]
[332902342,1721668240556,-150.0,0.00011654,2]
[332902343,1721668240565,-150.0,0.00011655,2]
[332902344,1721668240575,-150.0,0.00011661,2]
[332902345,1721668240584,-150.0,0.00011663,2]
[332902346,1721668240593,-150.0,0.00011684,2]
[332902347,1721668240602,-150.0,0.00011691,2]
[332902348,1721668240611,-150.0,0.00011691,2]
[332902349,1721668240621,-51249.81050675,0.00011697,2]
[332902350,1721668240630,-150.0,0.00011698,2]
[332902351,1721668240641,-150.0,0.00011699,2]
[332902352,1721668240650,-150.0,0.00011699,2]
[332902353,1721668240816,-150.0,0.00011699,2]
[332902354,1721668240826,-7147662.0,0.000117,2]
[332902355,1721668240835,-161.53887783,0.00011701,2]
[332902356,1721668240844,-226.40222749,0.00011701,2]
[332902357,1721668240857,-426.13770962,0.00011701,2]
[332902358,1721668240867,-976.42591261,0.00011701,2]
[332902359,1721668240877,-150.0,0.00011701,2]
[332902360,1721668240886,-300.0,0.00011702,2]
[332902361,1721668240896,-150.0,0.00011704,2]
[332902362,1721668240905,-300.0,0.00011705,2]
[332902363,1721668240914,-150.0,0.00011708,2]
[332902364,1721668240924,-150.0,0.0001171,2]
[332902365,1721668240933,-150.0,0.00011711,2]
[332902366,1721668240943,-150.0,0.00011716,2]
[332902367,1721668240952,-150.0,0.00011716,2]
[332902368,1721668240961,-150.0,0.00011719,2]
[332902369,1721668240971,-300.0,0.0001172,2]
[332902370,1721668240980,-150.0,0.00011722,2]
[332902371,1721668240990,-150.0,0.00011725,2]
[332902372,1721668240999,-150.0,0.00011726,2]
[332902373,1721668241008,-150.0,0.00011727,2]
[332902374,1721668241017,-150.0,0.00011727,2]
[332902375,1721668241026,-150.0,0.00011728,2]
[332902376,1721668241036,-150.0,0.00011728,2]
[332902377,1721668241045,-150.0,0.0001173,2]
[332902378,1721668241054,-150.0,0.00011733,2]
[332902379,1721668241063,-150.0,0.00011733,2]
[332902380,1721668241072,-226.40222749,0.00011734,2]
[332902381,1721668241081,-150.0,0.00011734,2]
[332902382,1721668241090,-150.0,0.00011734,2]
[332902383,1721668241099,-150.0,0.00011735,2]
[332902384,1721668241108,-150.0,0.00011736,2]
[332902385,1721668241117,-150.0,0.00011738,2]
[332902386,1721668241127,-150.0,0.00011738,2]
[332902387,1721668241137,-150.0,0.0001174,2]
[332902388,1721668241146,-150.0,0.00011745,2]
[332902389,1721668241155,-150.0,0.00011745,2]
[332902390,1721668241164,-362.0,0.00011745,2]
[332902391,1721668241174,-1663.0,0.00011745,2]
[332902392,1721668241183,-1829.0,0.00011745,2]
[332902393,1721668241192,-1254.0,0.00011745,2]
[332902394,1721668241202,-450.0,0.00011745,2]
[332902395,1721668241211,-769.296,0.00011745,2]
[332902396,1721668241220,-445.0,0.00011745,2]
[332902397,1721668241229,-810.0,0.00011745,2]
[332902398,1721668241239,-150.0,0.00011749,2]
[332902399,1721668241248,-150.0,0.0001175,2]
[332902400,1721668241257,-150.0,0.00011751,2]
[332902401,1721668241266,-300.0,0.00011753,2]
[332902402,1721668241276,-150.0,0.00011754,2]
[332902403,1721668241285,-1500.0,0.00011756,2]
[332902404,1721668241295,-150.0,0.00011756,2]
[332902405,1721668241304,-150.0,0.00011756,2]
[332902406,1721668241314,-150.0,0.0001176,2]
[332902407,1721668241323,-150.0,0.0001176,2]
[332902408,1721668241333,-150.0,0.00011765,2]
[332902409,1721668241343,-150.0,0.00011765,2]
[332902410,1721668241352,-150.0,0.00011765,2]
[332902412,1721668241362,-150.0,0.00011765,2]
[332902413,1721668241372,-150.0,0.00011766,2]
[332902414,1721668241382,-226.40222749,0.00011767,2]
[332902415,1721668241391,-150.0,0.00011769,2]
[332902416,1721668241400,-150.0,0.0001177,2]
[332902417,1721668241410,-150.0,0.00011773,2]
[332902419,1721668241419,-300.0,0.00011775,2]
[332902420,1721668241429,-150.0,0.00011775,2]
[332902421,1721668241438,-150.0,0.00011776,2]
[332902422,1721668241447,-150.0,0.00011776,2]
[332902423,1721668241457,-150.0,0.00011777,2]
[332902424,1721668241466,-150.0,0.00011778,2]
[332902425,1721668241476,-154.58702,0.00011781,2]
[332902426,1721668241485,-8419.924544,0.00011786,2]
[332902427,1721668241494,-484.563958,0.00011786,2]
[332902428,1721668241503,-739.812725,0.00011786,2]
[332902429,1721668241513,-9619.712397,0.00011786,2]
[332902430,1721668241522,-13485.936178,0.00011786,2]
[332902431,1721668241531,-411.091693,0.00011786,2]
[332902432,1721668241541,-1255.875731,0.00011786,2]
[332902433,1721668241550,-150.0,0.00011786,2]
[332902434,1721668241559,-150.0,0.00011786,2]
[332902435,1721668241568,-150.0,0.00011788,2]
[332902436,1721668241578,-150.0,0.00011792,2]
[332902437,1721668241588,-1628.80738498,0.000118,2]
[332902438,1721668241597,-501.08506379,0.000118,2]
[332902439,1721668241606,-500.0,0.000118,3]
[332902440,1721668241615,-1000.0,0.000118,2]
[332902441,1721668241624,-150.0,0.000118,2]
[332902442,1721668241634,-161.53887783,0.000118,2]
[332902443,1721668241643,-226.40222749,0.000118,2]
[332902444,1721668241652,-426.13770962,0.000118,2]
[332902445,1721668241661,-976.42591261,0.000118,2]
[332902446,1721668241671,-150.0,0.00011802,2]
[332902447,1721668241680,-500.0,0.00011805,2]
[332902448,1721668241689,-150.0,0.00011806,2]
[332902449,1721668241698,-150.0,0.00011809,2]
[332902450,1721668241708,-150.0,0.0001181,2]
[332902451,1721668241717,-150.0,0.00011812,2]
[332902452,1721668241726,-150.0,0.00011813,2]
[332902453,1721668241735,-150.0,0.00011813,2]
[332902454,1721668241744,-150.0,0.00011814,2]
[332902455,1721668241754,-150.0,0.00011817,2]
[332902456,1721668241764,-150.0,0.00011818,2]
[332902457,1721668241773,-150.0,0.0001182,2]
[332902458,1721668241782,-150.0,0.00011822,2]
[332902459,1721668241791,-150.0,0.00011823,2]
[332902460,1721668241800,-150.0,0.00011824,2]
[332902461,1721668241810,-150.0,0.00011825,2]
[332902462,1721668241820,-150.0,0.00011825,2]
[332902463,1721668241829,-150.0,0.00011827,2]
[332902464,1721668241838,-150.0,0.00011828,2]
[332902465,1721668241848,-150.0,0.00011829,2]
[332902466,1721668241860,-150.0,0.00011829,2]
[332902467,1721668241869,-150.0,0.00011829,2]
[332902468,1721668241880,-150.0,0.00011832,2]
[332902469,1721668241890,-150.0,0.00011833,2]
[332902470,1721668241899,-150.0,0.00011835,2]
[332902471,1721668241908,-150.0,0.00011837,2]
[332902472,1721668241918,-150.0,0.00011839,2]
[332902473,1721668241929,-150.0,0.00011844,2]
[332902474,1721668241939,-150.0,0.00011849,2]
[332902475,1721668241948,-150.0,0.00011849,2]
[332902476,1721668241958,-1172.61202926,0.0001185,2]
[332902477,1721668241968,-150.0,0.00011852,2]
[332902478,1721668241978,-150.0,0.00011854,2]
[332902479,1721668241987,-150.0,0.00011855,2]
[332902480,1721668241997,-150.0,0.00011855,2]
[332902481,1721668242007,-300.0,0.00011857,2]
[332902482,1721668242017,-150.0,0.00011858,2]
[332902483,1721668242027,-150.0,0.00011861,2]
[332902484,1721668242036,-150.0,0.00011863,2]
[332902485,1721668242045,-8500.0,0.00011865,2]
[332902486,1721668242055,-150.0,0.00011867,2]
[332902487,1721668242065,-150.0,0.00011868,2]
[332902488,1721668242074,-150.0,0.00011868,2]
[332902489,1721668242083,-150.0,0.00011869,2]
[332902490,1721668242092,-150.0,0.00011869,2]
[332902491,1721668242102,-150.0,0.00011871,2]
[332902492,1721668242112,-150.0,0.00011872,2]
[332902493,1721668242121,-8500.0,0.00011874,2]
[332902494,1721668242135,-150.0,0.00011874,2]
[332902495,1721668242145,-150.0,0.00011874,2]
[332902496,1721668242154,-150.0,0.00011876,2]
[332902497,1721668242164,-150.0,0.00011876,2]
[332902498,1721668242173,-150.0,0.00011879,2]
[332902499,1721668242183,-8500.0,0.00011882,2]
[332902500,1721668242192,-150.0,0.00011884,2]
[332902501,1721668242202,-150.0,0.00011884,2]
[332902502,1721668242211,-150.0,0.00011885,2]
[332902503,1721668242221,-150.0,0.00011885,2]
[332902504,1721668242231,-150.0,0.00011885,2]
[332902505,1721668242239,-302.02,0.0001189,2]
[332902506,1721668242249,-420.11,0.0001189,2]
[332902507,1721668242258,-420.11,0.0001189,2]
[332902508,1721668242267,-420.11,0.0001189,2]
[332902509,1721668242277,-420.11,0.0001189,2]
[332902510,1721668242286,-420.11,0.0001189,2]
[332902511,1721668242295,-420.11,0.0001189,2]
[332902512,1721668242304,-420.11,0.0001189,2]
[332902513,1721668242313,-420.11,0.0001189,2]
[332902514,1721668242322,-507.49,0.0001189,2]
[332902515,1721668242331,-200.0,0.0001189,2]
[332902516,1721668242340,-150.0,0.00011891,2]
[332902517,1721668242350,-8500.0,0.00011891,2]
[332902518,1721668242359,-150.0,0.00011892,2]
[332902519,1721668242368,-3450.015747,0.00011893,2]
[332902520,1721668242380,-2695.358298,0.00011893,2]
[332902521,1721668242390,-10197.6818261,0.00011893,2]
[332902523,1721668242399,-164892.7818153,0.00011893,2]
[332902524,1721668242410,-22246.4899517,0.00011893,2]
[332902525,1721668242419,-7226.4088041,0.00011893,2]
[332902526,1721668242429,-150.0,0.00011893,2]
[332902527,1721668242438,-150.0,0.00011894,2]
[332902528,1721668242447,-363.71380104,0.00011896,2]
[332902529,1721668242457,-363.71380104,0.00011896,2]
[332902530,1721668242467,-300.02,0.00011899,2]
[332902531,1721668242476,-2329.02758104,0.00011899,2]
[332902532,1721668242486,-17368198.19837418,0.000119,2]
[332902533,1721668242505,-353.436607,0.000119,2]
[332902534,1721668242539,-5564.35873784,0.000119,2]
[332902535,1721668242551,-6134.62087728,0.000119,2]
[332902537,1721668242598,-15240.96322548,0.000119,2]
[332902539,1721668242609,-2723.3863073,0.000119,2]
[332902551,1721668245271,-646.388186,0.00010516,2]
[332902552,1721668245282,-1135.081,0.00011509,2]
[332902553,1721668245292,-150.0,0.00011631,2]
[332902554,1721668245301,-150.0,0.00011632,2]
[332902555,1721668245311,-150.0,0.00011648,2]
[332902556,1721668245320,-150.0,0.00011648,2]
[332902557,1721668245329,-150.0,0.00011651,2]
[332902558,1721668245339,-150.0,0.00011651,2]
[332902559,1721668245349,-150.0,0.00011652,2]
[332902560,1721668245359,-150.0,0.00011654,2]
[332902561,1721668245368,-150.0,0.00011659,2]
[332902562,1721668245378,-150.0,0.0001166,2]
[332902563,1721668245387,-150.0,0.00011669,2]
[332902564,1721668245397,-150.0,0.00011681,2]
[332902565,1721668245410,-150.0,0.00011684,2]
[332902566,1721668245419,-150.0,0.00011685,2]
[332902567,1721668245430,-150.0,0.00011687,2]